[Event "Gibraltar Challengers B 2019"]
[Site "Caleta"]
[Date "2019.01.26"]
[Round "1"]
[White "Villar Reymundo, Juan Antonio"]
[Black "Ungureanu, Sandu"]
[Result "1-0"]
[ECO "D10"]
[WhiteElo "2237"]
[BlackElo "2057"]
[Annotator "NA"]
[PlyCount "95"]
[EventDate "2019.01.18"]
[EventType "swiss"]
[EventCountry "GGB"]
[SourceTitle "playchess.com"]
[Source "ChessBase"]
[SourceQuality "1"]
[TimeControl "6600+10"]

{[%evp 8,95,63,32767,53,-4,27,24,71,70,32767,87,32767,32767,32767,32767,32767,32767,108,32767,32767,32767,85,32767,32767,122,207,128,32767,32767,189,189,175,137,297,32767,300,306,32767,32767,32767,32767,32767,32767,296,311,32767,322,300,309,290,280,32767,242,32767,0,466,32767,32767,32767,320,32767,402,180,430,32767,351,487,32767,32767,535,32767,32767,352,258,401,32767,32767,32767,466,539,32767,32767,820,32767,29984,29982,32767,32767,29986]} 1. d4 {[%emt 0:04:11]} d5 {[%emt 0:00:00]} 2. c4 {[%emt 0:00:04]} c6 {[%emt 0:00:24]} 3. Nc3 {[%emt 0:00:09]} Nf6 {[%emt 0:00:10]} 4. e3 {[%emt 0:00:06]} Bg4 {[%emt 0:00:45] LiveBook: 119 Games} 5. Qb3 {[%emt 0:02:19]} Qb6 {[%emt 0:01:22] D10: Slav Defence: 3 cxd5 (without early Nf3) and 3 Nc3} 6. c5 {[%emt 0:00:57]} (6. h3 Bf5 7. g4 Qxb3 8. axb3 Bc2 9. g5 Nfd7 10. cxd5 Bxb3 11. Bg2 Nb6 12. dxc6 Nxc6 13. Nf3 {½-½ (66) Potkin,V (2671)-Vallejo Pons,F (2716) Germany 2011}) 6... Qxb3 {[%emt 0:00:41]} 7. axb3 {[%emt 0:00:03]} Nbd7 {[%emt 0:00:52]} 8. b4 $146 {[%emt 0:00:21]} ({Predecessor:} 8. h3 Bf5 9. Nf3 Ne4 10. Bd2 e5 11. b4 Nxd2 12. Kxd2 e4 13. Nh4 {½-½ (63) Karikas,M (1650)-Horvath,I (1810) Balatonlelle 2009}) 8... a6 {[%emt 0:07:23] [#]} 9. b5 $1 {[%emt 0:00:16]} cxb5 {[%emt 0:00:05]} 10. Bxb5 {[%emt 0:00:06]} O-O-O {[%emt 0:02:17]} 11. Bd3 {[%emt 0:01:51]} Nb8 {[%emt 0:01:58]} 12. f4 {[%emt 0:04:16]} g6 {[%emt 0:02:40]} 13. b4 {[%emt 0:06:28]} Bf5 {[%emt 0:01:45]} 14. Ke2 {[%emt 0:09:00]} Bxd3+ {[%emt 0:02:25]} 15. Kxd3 {[%emt 0:00:07]} Bg7 {[%emt 0:05:59]} 16. Nf3 {[%emt 0:02:19]} e6 {[%emt 0:02:20]} (16... Nc6 $16 {was called for.}) 17. Ne5 {[%emt 0:02:37]} Rhf8 {[%emt 0:00:13]} 18. b5 {[%emt 0:00:39]} axb5 {[%emt 0:04:11]} 19. Nxb5 {[%emt 0:00:36]} Ne4 {[%emt 0:00:04]} 20. Rf1 {[%emt 0:04:02]} f5 $2 {[%emt 0:01:10]} (20... f6 $16 {was worth a try.}) 21. Na7+ {[%emt 0:05:03]} Kc7 {[%emt 0:00:55] [#]} 22. Bd2 $1 {[%emt 0:00:06]} Nxd2 {[%emt 0:00:59]} 23. Nb5+ {[%emt 0:00:45]} Kc8 {[%emt 0:00:11]} 24. Kxd2 {[%emt 0:00:10]} Bxe5 {[%emt 0:00:11]} 25. fxe5 {[%emt 0:00:09]} Nc6 {[%emt 0:03:12]} 26. Rfb1 {[%emt 0:01:45]} Kb8 {[%emt 0:01:06]} 27. Nd6 {[%emt 0:01:49]} Rd7 {[%emt 0:00:05]} 28. Ra6 {[%emt 0:00:52]} Rc7 {[%emt 0:02:38]} 29. Ra4 {[%emt 0:04:07]} Re7 $1 $11 {[%emt 0:06:23]} 30. Nb5 {[%emt 0:06:52]} Rd8 {[%emt 0:05:17]} 31. Nd6 $2 {[%emt 0:06:46]} ({White should try} 31. g3 $18) 31... h5 $2 {[%emt 0:02:37]} 32. Ke2 {[%emt 0:10:28]} g5 {[%emt 0:01:29]} 33. Kf2 {[%emt 0:02:32]} h4 {[%emt 0:02:12]} 34. Ra6 {[%emt 0:00:37]} Rc7 {[%emt 0:00:51] [#]} 35. Kf3 {[%emt 0:05:45]} (35. Rxc6 $142 $1 {[%mdl 512]} Rxc6 36. Nxb7) 35... f4 $2 {[%emt 0:02:13]} (35... Rh8 36. Rab6 g4+ 37. Ke2 Rhh7) 36. Rxc6 {[%emt 0:03:12]} Rxc6 {[%emt 0:00:44]} 37. Nxb7 {[%emt 0:00:30]} Rf8 {[%emt 0:01:26]} 38. Na5+ {[%emt 0:01:15]} Kc7 {[%emt 0:00:46]} 39. Nxc6 {[%emt 0:00:42]} Kxc6 {[%emt 0:00:21]} 40. Rb6+ {[%emt 0:02:15]} Kd7 {[%emt 0:02:53]} 41. Rb7+ {[%emt 0:00:09]} Kc8 {[%emt 0:02:11]} 42. Rg7 {[%emt 0:01:53]} fxe3+ {[%emt 0:00:22]} 43. Kxe3 {[%emt 0:00:10]} Rf5 {[%emt 0:01:18]} 44. Rg6 {[%emt 0:01:22]} Kd7 {[%emt 0:01:23]} 45. Rf6 {[%emt 0:00:57]} Kc7 {[%emt 0:00:19]} 46. g4 {[%emt 0:00:53]} hxg3 {[%emt 0:00:20]} 47. hxg3 {[%emt 0:00:06]} Kd7 {[%emt 0:00:09]} 48. g4 {[%emt 0:00:27]} 1-0

[Event "Gibraltar Challengers B 2019"]
[Site "Caleta"]
[Date "2019.01.26"]
[Round "1"]
[White "Longa Yauca, Javier"]
[Black "Kozarcanin, Sead"]
[Result "1-0"]
[ECO "D15"]
[WhiteElo "2226"]
[BlackElo "2048"]
[Annotator "NA"]
[PlyCount "49"]
[EventDate "2019.01.18"]
[EventType "swiss"]
[EventCountry "GGB"]
[SourceTitle "playchess.com"]
[Source "ChessBase"]
[SourceQuality "1"]
[TimeControl "6600+10"]

1. d4 {[%emt 0:02:21]} d5 {[%emt 0:00:00]} 2. c4 {[%emt 0:00:24]} c6 {[%emt 0:00:02]} 3. Nf3 {[%emt 0:00:21]} Nf6 {[%emt 0:00:02]} 4. Nc3 {[%emt 0:00:26]} a6 {[%emt 0:00:11]} 5. c5 {[%emt 0:01:43]} Nbd7 {[%emt 0:00:11]} 6. Bf4 {[%emt 0:01:06]} Nh5 {[%emt 0:00:16]} 7. Bd2 {[%emt 0:00:47]} g6 {[%emt 0:00:40] LiveBook: 89 Games} 8. g4 {[%emt 0:00:33] D15: Slav Defence: 4 Nc3 a6 and gambit lines after 4 Nc3 dxc4} (8. e4 dxe4 9. Nxe4 Ndf6 10. Nxf6+ exf6 11. Bc4 Qe7+ 12. Be2 Be6 13. O-O Qd7 14. Re1 Ng7 15. Bc3 Be7 {½-½ (40) Kozionov,K (2456)-Volkov,S (2580) Voronezh 2018}) 8... Ng7 $146 {[%emt 0:00:50]} ({Predecessor:} 8... Nhf6 9. h3 Bg7 10. Bf4 h5 11. g5 Ne4 12. Qc2 Nxc3 13. Qxc3 O-O 14. e3 e5 15. dxe5 Qe7 {½-½ (39) Vasiliev,V (2350)-Juzbashev,V (2091) Riazan 2010}) 9. Bh6 {[%emt 0:02:43]} Qc7 {[%emt 0:01:24]} (9... f5 $15) 10. e4 {[%emt 0:04:52]} (10. Qd2 $14 {stays ahead.}) 10... Nf6 {[%emt 0:03:53]} 11. exd5 {[%emt 0:01:10]} Nxg4 {[%emt 0:07:07]} 12. Bxg7 {[%emt 0:05:26]} Bxg7 {[%emt 0:00:02]} 13. Bg2 {[%emt 0:00:40]} O-O {[%emt 0:00:46]} 14. Qb3 {[%emt 0:04:10]} Rd8 {[%emt 0:08:31]} 15. h3 {[%emt 0:01:40]} Nf6 {[%emt 0:00:39]} 16. dxc6 {[%emt 0:00:34]} bxc6 {[%emt 0:01:30]} 17. Ne5 {[%emt 0:01:55]} Be6 {[%emt 0:00:26]} 18. Qb6 {[%emt 0:00:21]} Qxb6 {[%emt 0:04:52]} (18... Rac8 $1 $11 {remains equal.}) 19. cxb6 {[%emt 0:00:12]} Bd5 {[%emt 0:43:27]} 20. Nxd5 {[%emt 0:01:42]} Nxd5 $4 {[%emt 0:01:50]} (20... cxd5 $16 {keeps fighting.} 21. b7 Rab8) 21. b7 {[%emt 0:00:54]} Rab8 {[%emt 0:00:32]} 22. Nxc6 {[%emt 0:00:24]} e6 {[%emt 0:01:50]} 23. Nxd8 {[%emt 0:00:14]} Rxd8 {[%emt 0:00:01]} 24. Bxd5 {[%emt 0:00:26]} exd5 $18 {[%emt 0:00:15]} 25. Rc1 {[%emt 0:00:51]} 1-0

[Event "Gibraltar Challengers B 2019"]
[Site "Caleta"]
[Date "2019.01.26"]
[Round "1"]
[White "Abdulraheem Abdulrahman Akint"]
[Black "Dasaolu, Rotimi"]
[Result "1-0"]
[ECO "A01"]
[WhiteElo "2224"]
[BlackElo "2038"]
[Annotator "NA"]
[PlyCount "61"]
[EventDate "2019.01.18"]
[EventType "swiss"]
[EventCountry "GGB"]
[SourceTitle "playchess.com"]
[Source "ChessBase"]
[SourceQuality "1"]
[TimeControl "6600+10"]

{[%evp 8,61,20,32767,20,32767,32767,23,32767,-14,10,-42,32767,32767,32767,32767,32767,32767,51,32767,18,32767,183,32767,32767,32767,192,211,163,32767,32767,32767,32767,32767,320,357,32767,32767,617,639,631,698,32767,494,32767,875,32767,32767,1290,2173,32767,29985,29984,29987,32767,29998]} 1. b3 {[%emt 0:00:15]} b6 {[%emt 0:01:27]} 2. Bb2 {[%emt 0:01:30]} Bb7 {[%emt 0:00:01]} 3. Nf3 {[%emt 0:02:06] A01: Nimzowitsch-Larsen Opening} d6 {[%emt 0:00:11]} (3... Nf6 4. e3 c5 5. c4 g6 6. Be2 Bg7 7. O-O O-O 8. Nc3 d5 9. cxd5 Nxd5 10. Rc1 Nc6 11. Qc2 Ndb4 12. Qb1 Ba6 13. Bxa6 Nxa6 14. d4 cxd4 15. Nb5 Qd5 16. Nbxd4 Nxd4 17. Bxd4 {0-1 (67) Karjakin,S (2773)-So,W (2780) Saint Louis 2018}) 4. d4 {[%emt 0:00:33]} Nf6 {[%emt 0:00:26]} 5. c4 {[%emt 0:00:46]} e6 {[%emt 0:00:13]} 6. Nc3 {[%emt 0:01:15]} g6 $146 {[%emt 0:00:14]} ({Predecessor:} 6... Be7 7. d5 O-O 8. e4 a5 9. Be2 e5 10. O-O g6 11. Ne1 {1-0 (30) Flores,D (2450)-Vazquez,M (2087) Buenos Aires 2004}) 7. Qc2 {[%emt 0:01:01]} Nbd7 {[%emt 0:00:12]} 8. O-O-O {[%emt 0:02:41]} Qe7 {[%emt 0:00:48]} 9. Nb5 {[%emt 0:02:02]} Bh6+ {[%emt 0:04:22]} 10. e3 {[%emt 0:00:31]} Be4 {[%emt 0:01:43]} 11. Bd3 {[%emt 0:01:29]} Bxd3 {[%emt 0:02:08]} 12. Rxd3 {[%emt 0:00:20]} Qd8 {[%emt 0:00:44]} ({Black should play} 12... O-O $11) 13. Kb1 {[%emt 0:03:25]} a6 {[%emt 0:00:28]} 14. Nc3 {[%emt 0:00:13]} d5 {[%emt 0:02:28]} (14... O-O $14) 15. cxd5 {[%emt 0:03:23]} exd5 {[%emt 0:00:05]} 16. Ne5 {[%emt 0:01:07]} Qe7 {[%emt 0:02:33]} 17. f4 {[%emt 0:02:02]} Qe6 {[%emt 0:05:23]} 18. g4 {[%emt 0:08:03]} Bg7 {[%emt 0:00:31]} 19. Rf1 {[%emt 0:15:10]} Rc8 {[%emt 0:15:27]} 20. f5 {[%emt 0:08:26]} Qd6 {[%emt 0:00:29]} 21. g5 {[%emt 0:01:16]} Nh5 {[%emt 0:01:37]} 22. fxg6 {[%emt 0:01:21]} Nxe5 {[%emt 0:08:12]} 23. dxe5 {[%emt 0:00:32]} Qxg6 {[%emt 0:00:00]} 24. Nxd5 {[%emt 0:00:57]} c5 {[%emt 0:03:37]} 25. Rd2 {[%emt 0:08:52]} Qe6 {[%emt 0:21:04]} 26. Qd1 {[%emt 0:03:27]} Qg6+ {[%emt 0:02:10]} 27. Ka1 {[%emt 0:02:54]} Qxg5 {[%emt 0:05:05]} 28. Rg1 {[%emt 0:01:40]} Qh6 {[%emt 0:00:12] [#]} 29. Rxg7 $1 {[%emt 0:00:35]} Nxg7 {[%emt 0:00:25]} 30. Nf6+ {[%emt 0:00:14]} Ke7 {[%emt 0:01:06]} 31. Rd7+ {[%emt 0:00:31]} 1-0

[Event "Gibraltar Challengers B 2019"]
[Site "Caleta"]
[Date "2019.01.26"]
[Round "1"]
[White "Maisuradze, Nino"]
[Black "Cramling Bellon, Anna"]
[Result "1-0"]
[ECO "E42"]
[WhiteElo "2215"]
[BlackElo "2025"]
[Annotator "NA"]
[PlyCount "79"]
[EventDate "2019.01.18"]
[EventType "swiss"]
[EventCountry "GGB"]
[SourceTitle "playchess.com"]
[Source "ChessBase"]
[SourceQuality "1"]
[TimeControl "6600+10"]

1. d4 {[%emt 0:00:00]} Nf6 {[%emt 0:00:04]} 2. c4 {[%emt 0:00:41]} e6 {[%emt 0:00:09]} 3. Nc3 {[%emt 0:00:09]} Bb4 {[%emt 0:00:09]} 4. e3 {[%emt 0:01:26]} b6 {[%emt 0:02:01]} 5. Nge2 {[%emt 0:00:23]} c5 {[%emt 0:00:57]} 6. a3 {[%emt 0:01:24]} Ba5 {[%emt 0:00:06]} 7. Rb1 {[%emt 0:04:20]} Na6 {[%emt 0:00:06]} 8. Bd2 {[%emt 0:01:51]} O-O {[%emt 0:00:11]} 9. Qa4 {[%emt 0:03:45] LiveBook: 8 Games E42: Nimzo-Indian: Rubinstein: 4...c5 5 Ne2} (9. Ng3 cxd4 10. exd4 Bxc3 11. bxc3 Nc7 12. Be2 Ba6 13. O-O d5 14. cxd5 Qxd5 15. Bf4 Bxe2 16. Qxe2 Rfc8 17. Rfc1 {0-1 (36) Kasimdzhanov,R (2676)-Heinemann,T (2484) Germany 2018}) 9... cxd4 $146 {[%emt 0:20:06]} ({Predecessor:} 9... d5 10. cxd5 exd5 11. Ng3 Bd7 12. Qc2 cxd4 13. Bxa6 dxc3 14. Bxc3 Bxc3+ 15. bxc3 Qe7 {1-0 (59) Lajthajm,B (2422)-Rajkovic,D (2456) Budva 2003}) 10. exd4 {[%emt 0:03:19]} Bxc3 {[%emt 0:00:07]} 11. Nxc3 {[%emt 0:00:39]} Nc7 {[%emt 0:01:25]} 12. Be2 {[%emt 0:09:43]} Bb7 {[%emt 0:01:55]} 13. O-O {[%emt 0:00:08]} d5 {[%emt 0:15:57]} 14. Bf3 {[%emt 0:09:16]} Ba6 {[%emt 0:08:08]} 15. b3 {[%emt 0:03:02]} Qe8 {[%emt 0:33:20]} 16. Rfc1 {[%emt 0:02:40]} Qxa4 {[%emt 0:03:21]} 17. Nxa4 {[%emt 0:00:05]} Rfc8 {[%emt 0:12:36]} 18. Bf4 {[%emt 0:01:21]} Nce8 {[%emt 0:03:33]} 19. Nb2 {[%emt 0:02:23]} h6 {[%emt 0:00:46]} 20. h4 {[%emt 0:00:25]} Ne4 {[%emt 0:02:45]} 21. Bxe4 {[%emt 0:10:08]} dxe4 {[%emt 0:00:02]} 22. a4 {[%emt 0:00:19]} Rd8 {[%emt 0:03:35]} 23. Rd1 {[%emt 0:00:14]} Rac8 {[%emt 0:00:08]} 24. Rbc1 {[%emt 0:00:24]} Nd6 {[%emt 0:00:58]} 25. Bxd6 {[%emt 0:12:54]} Rxd6 {[%emt 0:00:01]} 26. c5 {[%emt 0:06:13]} bxc5 {[%emt 0:00:28]} 27. dxc5 {[%emt 0:00:12]} Rxd1+ {[%emt 0:01:09]} 28. Nxd1 {[%emt 0:00:03]} Rb8 {[%emt 0:00:06]} 29. c6 {[%emt 0:01:46]} Rxb3 {[%emt 0:00:16]} 30. c7 {[%emt 0:00:17]} Bc8 {[%emt 0:00:00]} 31. Nc3 {[%emt 0:00:39]} Rb4 {[%emt 0:00:27]} 32. Nb5 {[%emt 0:00:25]} Rxa4 {[%emt 0:00:02]} 33. Nd6 {[%emt 0:00:51]} Bd7 {[%emt 0:00:01]} 34. c8=Q+ {[%emt 0:02:35]} Bxc8 $18 {[%emt 0:00:01]} 35. Rxc8+ {[%emt 0:00:07]} Kh7 {[%emt 0:00:01]} 36. Nxf7 {[%emt 0:00:06]} Ra1+ {[%emt 0:00:16]} 37. Kh2 {[%emt 0:00:03]} a5 {[%emt 0:00:34]} 38. Ne5 {[%emt 0:00:17]} Ra2 {[%emt 0:00:19]} 39. h5 {[%emt 0:00:17]} Rxf2 {[%emt 0:00:10]} 40. Ng6 {[%emt 0:00:04]} 1-0

[Event "Gibraltar Challengers B 2019"]
[Site "Caleta"]
[Date "2019.01.26"]
[Round "1"]
[White "Rodriguez Perez, Angel Mariano"]
[Black "Kakulidis, Ellen"]
[Result "1-0"]
[ECO "C01"]
[WhiteElo "2204"]
[BlackElo "2021"]
[Annotator "NA"]
[PlyCount "83"]
[EventDate "2019.01.18"]
[EventType "swiss"]
[EventCountry "GGB"]
[SourceTitle "playchess.com"]
[Source "ChessBase"]
[SourceQuality "1"]
[TimeControl "6600+10"]

1. e4 {[%emt 0:00:00]} e6 {[%emt 0:00:00]} 2. d4 {[%emt 0:00:00]} d5 {[%emt 0:00:03]} 3. exd5 {[%emt 0:00:20]} exd5 {[%emt 0:00:08]} 4. Bf4 {[%emt 0:00:06]} Nf6 {[%emt 0:00:30]} 5. Nc3 {[%emt 0:00:04]} Bb4 {[%emt 0:01:34] LiveBook: 6 Games C01: French: Exchange Variation} (5... Be7 6. Bd3 O-O 7. Nge2 Nc6 8. a3 a6 {½-½ (8) Pancevski,F (2494)-Nyzhnyk,I (2622) Chicago 2015}) 6. f3 {[%emt 0:00:41]} c5 $146 {[%emt 0:04:20]} ({Predecessor:} 6... Bxc3+ 7. bxc3 O-O 8. Bd3 Nc6 9. Ne2 Be6 10. O-O Qd7 11. g4 Ne8 12. Qe1 Nd6 {1-0 (39) Jaroch,K (2158)-Szybowicz,P (2006) Chojnice 2008}) 7. Nge2 {[%emt 0:01:15]} Nc6 {[%emt 0:03:51]} 8. Qd2 {[%emt 0:03:29]} Be6 {[%emt 0:05:03]} 9. O-O-O {[%emt 0:05:58]} c4 {[%emt 0:24:28]} 10. Bg5 {[%emt 0:04:42]} b5 {[%emt 0:12:42]} 11. Qf4 {[%emt 0:05:49]} Bd6 {[%emt 0:05:53]} 12. Qe3 {[%emt 0:04:22]} b4 {[%emt 0:21:00]} ({Black should play} 12... O-O $15) 13. Bxf6 {[%emt 0:01:38]} Qa5 {[%emt 0:07:28]} 14. Bxg7 {[%emt 0:01:19]} Rg8 {[%emt 0:01:24]} 15. Be5 {[%emt 0:11:39]} Bxe5 {[%emt 0:06:30]} 16. dxe5 {[%emt 0:00:40]} bxc3 {[%emt 0:00:26]} 17. Nxc3 {[%emt 0:04:57]} Rb8 {[%emt 0:04:01]} 18. a3 {[%emt 0:14:43]} d4 {[%emt 0:02:45]} 19. Qe4 {[%emt 0:00:39]} (19. Rxd4 $142 Qb6 20. Re4 Qxb2+ 21. Kd2) 19... Qb6 {[%emt 0:00:11]} 20. Na4 {[%emt 0:00:30]} Qb5 {[%emt 0:00:25]} 21. b3 {[%emt 0:01:15]} d3 {[%emt 0:01:53]} 22. Nc3 {[%emt 0:04:40]} Qa6 {[%emt 0:00:20]} 23. a4 {[%emt 0:01:51] [#]} ({But not} 23. Qxh7 $2 Qxa3+ 24. Kd2 Rg6 $19) 23... Ne7 $1 {[%emt 0:02:55]} 24. bxc4 {[%emt 0:05:19]} dxc2 {[%emt 0:01:22]} 25. Qxc2 {[%emt 0:00:48]} Nf5 {[%emt 0:00:32]} 26. Nb5 {[%emt 0:00:53]} Qb6 {[%emt 0:00:21]} 27. c5 {[%emt 0:00:51]} Qa5 {[%emt 0:00:00]} 28. Nd6+ {[%emt 0:06:51]} Nxd6 {[%emt 0:00:07]} 29. exd6 {[%emt 0:00:41] [#]} Rg5 $1 {[%emt 0:00:32]} 30. d7+ {[%emt 0:08:14]} Bxd7 {[%emt 0:00:54]} 31. Bc4 {[%emt 0:08:47]} Bxa4 {[%emt 0:02:30]} 32. Qe4+ {[%emt 0:02:09]} Kf8 {[%emt 0:00:05]} 33. Qd4 {[%emt 0:00:31]} Kg8 $18 {[%emt 0:01:01]} (33... Bxd1 $19 34. Qd6+ Kg7 35. Qxb8 Qc3+ 36. Kxd1 Qd4+ 37. Kc2 Rxc5) 34. Bxf7+ {[%emt 0:00:43]} Kxf7 {[%emt 0:00:02]} 35. Qf4+ {[%emt 0:00:11]} Kg6 {[%emt 0:00:22]} 36. Rd6+ {[%emt 0:00:25]} Kg7 {[%emt 0:00:10]} 37. Qxg5+ {[%emt 0:00:13]} Kf8 {[%emt 0:00:02]} 38. Rf6+ {[%emt 0:00:38]} Ke8 {[%emt 0:00:03]} 39. Qe5+ {[%emt 0:00:22]} Kd7 {[%emt 0:00:00]} 40. Qd6+ {[%emt 0:00:33]} Kc8 {[%emt 0:00:07]} 41. Rf8+ {[%emt 0:00:11]} Kb7 {[%emt 0:00:05]} 42. Rxb8# {[%emt 0:00:10]} 1-0

[Event "Gibraltar Challengers B 2019"]
[Site "Caleta"]
[Date "2019.01.26"]
[Round "1"]
[White "Saber, Yasser"]
[Black "Bryn, Askild"]
[Result "0-1"]
[ECO "A42"]
[WhiteElo "2201"]
[BlackElo "2010"]
[Annotator "NA"]
[PlyCount "68"]
[EventDate "2019.01.18"]
[EventType "swiss"]
[EventCountry "GGB"]
[SourceTitle "playchess.com"]
[Source "ChessBase"]
[SourceQuality "1"]
[TimeControl "6600+10"]

1. d4 {[%emt 0:00:23]} d6 {[%emt 0:10:04]} 2. c4 {[%emt 0:01:02]} Nd7 {[%emt 0:00:04]} 3. Nc3 {[%emt 0:00:17]} e5 {[%emt 0:00:05]} 4. Nf3 {[%emt 0:00:17]} g6 {[%emt 0:00:19]} 5. e4 {[%emt 0:00:20]} Bg7 {[%emt 0:00:05]} 6. Be2 {[%emt 0:00:04]} Ne7 {[%emt 0:00:05]} 7. O-O {[%emt 0:00:18] LiveBook: 154 Games} O-O {[%emt 0:00:05]} 8. Re1 {[%emt 0:00:37]} h6 {[%emt 0:00:42]} 9. Bf1 {[%emt 0:01:40] A42: Modern Defence: Averbakh Variation} Kh7 {[%emt 0:02:45]} (9... exd4 10. Nxd4 Nc6 11. Be3 Nde5 12. f3 Nxd4 13. Bxd4 Be6 14. Nd5 c5 15. Bc3 Nc6 16. Bxg7 Kxg7 {1-0 (42) Le,Q (2718)-Svidler,P (2759) Almaty 2016}) 10. Rb1 {[%emt 0:10:52]} f5 {[%emt 0:15:38]} 11. dxe5 {[%emt 0:00:55]} (11. Bg5 $5) 11... dxe5 $146 {[%emt 0:01:33]} ({Predecessor:} 11... Nxe5 12. Nxe5 Bxe5 13. Qd2 f4 14. Ne2 g5 15. f3 Ng6 16. Kh1 Qf6 17. b3 g4 18. Bb2 gxf3 19. gxf3 Nh4 20. Bxe5 dxe5 21. Ng1 Rg8 22. Qf2 Be6 {0-1 (22) Moore,G (2071)-Mason,D (2125) Coventry 2017}) 12. exf5 {[%emt 0:09:02]} gxf5 {[%emt 0:05:24]} 13. b3 {[%emt 0:27:43]} (13. Nh4 $14) 13... Ng6 {[%emt 0:01:00]} (13... e4 $5 {[%cal Rg7c3]} 14. Nd4 Nc5 $11) 14. Ne2 {[%emt 0:08:59]} e4 {[%emt 0:09:59]} 15. Nfd4 {[%emt 0:00:04]} Nde5 {[%emt 0:00:09]} 16. Ng3 {[%emt 0:02:56]} Ng4 {[%emt 0:02:09]} 17. Nde2 {[%emt 0:14:14] [#]} Qh4 $1 {[%emt 0:00:48]} 18. h3 {[%emt 0:00:07] [#]} Nxf2 $1 {[%emt 0:00:38]} 19. Qc2 {[%emt 0:06:28]} Nd3 {[%emt 0:07:49]} 20. Rd1 {[%emt 0:00:50]} Be5 {[%emt 0:01:33]} 21. Nh1 {[%emt 0:04:03]} Rg8 {[%emt 0:06:23]} 22. Rxd3 {[%emt 0:02:33]} exd3 {[%emt 0:00:16]} 23. Qxd3 {[%emt 0:00:02]} f4 {[%emt 0:07:05]} 24. Qe4 {[%emt 0:05:51]} Qf6 {[%emt 0:00:37]} 25. g4 {[%emt 0:00:58]} h5 {[%emt 0:03:59]} 26. Nf2 {[%emt 0:08:14]} hxg4 {[%emt 0:12:19]} 27. hxg4 {[%emt 0:00:02]} f3 {[%emt 0:00:56]} 28. Nh3 {[%emt 0:00:20]} fxe2 {[%emt 0:01:12]} 29. Bxe2 {[%emt 0:00:03]} Bd4+ $19 {[%emt 0:01:09]} 30. Be3 {[%emt 0:01:55]} Bxe3+ {[%emt 0:00:53]} 31. Qxe3 {[%emt 0:00:03]} Qe5 {[%emt 0:01:20]} 32. Ng5+ {[%emt 0:01:47]} Kg7 {[%emt 0:00:15]} 33. Qd2 {[%emt 0:01:17]} Qg3+ {[%emt 0:01:39]} 34. Kf1 {[%emt 0:00:26]} Rf8+ {[%emt 0:00:20]} 0-1